[Event "*** SCC Grand Prix: Titled Tuesday Blitz"]
[Site "Chess.com"]
[Date "2020.06.23"]
[Round "9"]
[White "theblitzchamp"]
[Black "A-Fier"]
[Result "1-0"]
[WhiteElo "2669"]
[BlackElo "2761"]
[TimeControl "180+1"]
[EndTime "11:43:54 PDT"]
[Termination "theblitzchamp won by resignation"]

1. d4 {[%clk 0:03:00.9]} 1... Nf6 {[%clk 0:02:59.8]} 2. Bf4 {[%clk 0:03:00.7]}
2... c5 {[%clk 0:02:58.4]} 3. d5 {[%clk 0:03:00.6]} 3... d6 {[%clk 0:02:57.5]}
4. Nc3 {[%clk 0:02:59.6]} 4... e5 {[%clk 0:02:58.1]} 5. dxe6 {[%clk 0:02:59.2]}
5... Bxe6 {[%clk 0:02:57.7]} 6. e4 {[%clk 0:02:59.5]} 6... Be7 {[%clk
0:02:56.7]} 7. Nf3 {[%clk 0:02:58.2]} 7... O-O {[%clk 0:02:57.3]} 8. Be2 {[%clk
0:02:58.4]} 8... Nc6 {[%clk 0:02:57.1]} 9. O-O {[%clk 0:02:58.2]} 9... d5 {[%clk
0:02:57.6]} 10. exd5 {[%clk 0:02:54.6]} 10... Nxd5 {[%clk 0:02:58.5]} 11. Nxd5
{[%clk 0:02:54.6]} 11... Bxd5 {[%clk 0:02:59.4]} 12. Re1 {[%clk 0:02:53.6]}
12... Bf6 {[%clk 0:02:59.5]} 13. c3 {[%clk 0:02:53.4]} 13... Re8 {[%clk
0:02:56]} 14. Qc2 {[%clk 0:02:48.3]} 14... Be4 {[%clk 0:02:54.5]} 15. Qb3 {[%clk
0:02:48.1]} 15... Na5 {[%clk 0:02:53.5]} 16. Qa4 {[%clk 0:02:38.7]} 16... a6
{[%clk 0:02:43.7]} 17. Rad1 {[%clk 0:02:11.4]} 17... Qb6 {[%clk 0:02:43.4]} 18.
Qd7 {[%clk 0:01:20.2]} 18... Qxb2 {[%clk 0:02:22.5]} 19. Bd3 {[%clk 0:01:16.6]}
19... Bc6 {[%clk 0:02:15.4]} 20. Qf5 {[%clk 0:01:15.7]} 20... Kf8 {[%clk
0:01:14.5]} 21. Bd6+ {[%clk 0:01:03.8]} 21... Re7 {[%clk 0:01:10.4]} 22. Qxh7
{[%clk 0:00:53.2]} 22... Ke8 {[%clk 0:01:08.1]} 23. Bxe7 {[%clk 0:00:51.1]} 1-0

[Event "*** SCC Grand Prix: Titled Tuesday Blitz"]
[Site "Chess.com"]
[Date "2020.06.23"]
[Round "9"]
[White "Ginger_GM"]
[Black "dpruess"]
[Result "0-1"]
[WhiteElo "2649"]
[BlackElo "2506"]
[TimeControl "180+1"]
[EndTime "11:44:03 PDT"]
[Termination "dpruess won by resignation"]

1. d4 {[%clk 0:02:59.6]} 1... d5 {[%clk 0:02:51.6]} 2. Nc3 {[%clk 0:02:56.6]}
2... Nf6 {[%clk 0:02:49.5]} 3. Bf4 {[%clk 0:02:55]} 3... Bf5 {[%clk 0:02:37.8]}
4. f3 {[%clk 0:02:51]} 4... e6 {[%clk 0:02:21.2]} 5. g4 {[%clk 0:02:50.7]} 5...
Bg6 {[%clk 0:02:21.5]} 6. h4 {[%clk 0:02:49.8]} 6... h5 {[%clk 0:02:19.4]} 7. g5
{[%clk 0:02:49.3]} 7... Nfd7 {[%clk 0:02:06.2]} 8. e3 {[%clk 0:02:48.5]} 8... a6
{[%clk 0:01:53.9]} 9. Bd3 {[%clk 0:02:40]} 9... Bxd3 {[%clk 0:01:52.9]} 10. cxd3
{[%clk 0:02:39.2]} 10... c5 {[%clk 0:01:49.6]} 11. dxc5 {[%clk 0:02:39.1]} 11...
Bxc5 {[%clk 0:01:46.6]} 12. d4 {[%clk 0:02:39.3]} 12... Be7 {[%clk 0:01:46]} 13.
Nge2 {[%clk 0:02:33.4]} 13... Qb6 {[%clk 0:01:43.8]} 14. Kf2 {[%clk 0:02:26.3]}
14... Nc6 {[%clk 0:01:40.7]} 15. Bg3 {[%clk 0:02:11.6]} 15... g6 {[%clk
0:01:29.3]} 16. Na4 {[%clk 0:01:49.6]} 16... Qa7 {[%clk 0:01:22.7]} 17. Rc1
{[%clk 0:01:47.1]} 17... O-O {[%clk 0:01:19.7]} 18. Bc7 {[%clk 0:01:34.4]} 18...
Rac8 {[%clk 0:01:14.6]} 19. Bb6 {[%clk 0:01:30.6]} 19... Nxb6 {[%clk 0:01:13.3]}
20. Nc5 {[%clk 0:01:15.7]} 20... Nc4 {[%clk 0:01:02.9]} 21. Nd7 {[%clk
0:01:09.6]} 21... Rfd8 {[%clk 0:01:00.3]} 22. Nf6+ {[%clk 0:01:09]} 22... Bxf6
{[%clk 0:00:57.9]} 23. gxf6 {[%clk 0:01:09.1]} 23... Nxb2 {[%clk 0:00:45.6]} 24.
Rc2 {[%clk 0:01:08.5]} 24... Nxd1+ {[%clk 0:00:45.3]} 0-1

[Event "*** SCC Grand Prix: Titled Tuesday Blitz"]
[Site "Chess.com"]
[Date "2020.06.23"]
[Round "9"]
[White "praveenb2002"]
[Black "Lenyas66"]
[Result "1-0"]
[WhiteElo "2762"]
[BlackElo "2507"]
[TimeControl "180+1"]
[EndTime "11:44:03 PDT"]
[Termination "praveenb2002 won by resignation"]

1. e4 {[%clk 0:03:00.9]} 1... e6 {[%clk 0:03:00.1]} 2. d4 {[%clk 0:02:59.7]}
2... d5 {[%clk 0:03:00.3]} 3. Nd2 {[%clk 0:02:59.8]} 3... Nf6 {[%clk 0:03:00.4]}
4. e5 {[%clk 0:02:57.8]} 4... Nfd7 {[%clk 0:03:00.6]} 5. Bd3 {[%clk 0:02:57.9]}
5... c5 {[%clk 0:03:00.8]} 6. c3 {[%clk 0:02:58.2]} 6... Nc6 {[%clk 0:03:00.8]}
7. Ne2 {[%clk 0:02:56.4]} 7... cxd4 {[%clk 0:03:00.7]} 8. cxd4 {[%clk
0:02:56.3]} 8... f6 {[%clk 0:03:01.2]} 9. exf6 {[%clk 0:02:54.8]} 9... Nxf6
{[%clk 0:03:01.4]} 10. Nf3 {[%clk 0:02:55]} 10... Bd6 {[%clk 0:03:01.6]} 11. O-O
{[%clk 0:02:54.4]} 11... Qc7 {[%clk 0:03:01.7]} 12. h3 {[%clk 0:02:51.8]} 12...
O-O {[%clk 0:03:01.6]} 13. Be3 {[%clk 0:02:51.4]} 13... Bd7 {[%clk 0:02:50.4]}
14. Rc1 {[%clk 0:02:51.6]} 14... Rae8 {[%clk 0:02:47.9]} 15. a3 {[%clk
0:02:47.5]} 15... Qb8 {[%clk 0:02:43.5]} 16. Nc3 {[%clk 0:02:47.7]} 16... a6
{[%clk 0:02:43.4]} 17. b4 {[%clk 0:02:43.5]} 17... e5 {[%clk 0:02:41.1]} 18.
dxe5 {[%clk 0:02:40.2]} 18... Nxe5 {[%clk 0:02:41]} 19. Nxe5 {[%clk 0:02:36.3]}
19... Bxe5 {[%clk 0:02:41]} 20. Nxd5 {[%clk 0:02:29.6]} 20... Bc6 {[%clk
0:02:15.5]} 21. Nxf6+ {[%clk 0:02:23]} 21... Rxf6 {[%clk 0:02:14.8]} 22. Qg4
{[%clk 0:02:08.7]} 22... Ref8 {[%clk 0:01:49.5]} 23. Rfd1 {[%clk 0:02:08]} 23...
h6 {[%clk 0:01:36.6]} 24. Be4 {[%clk 0:02:05.9]} 24... Bxe4 {[%clk 0:01:28.8]}
25. Qxe4 {[%clk 0:02:06.8]} 25... Bf4 {[%clk 0:01:19.9]} 26. Bxf4 {[%clk
0:01:58.2]} 26... Rxf4 {[%clk 0:01:18.9]} 27. Qe6+ {[%clk 0:01:53.1]} 27... Kh8
{[%clk 0:01:18.5]} 28. Rc2 {[%clk 0:01:42.3]} 28... Qa7 {[%clk 0:01:18.2]} 29.
Qe3 {[%clk 0:01:33.1]} 29... Qb8 {[%clk 0:01:12.1]} 30. Rd7 {[%clk 0:01:28.9]}
30... b5 {[%clk 0:01:09]} 31. Rcc7 {[%clk 0:01:19.8]} 31... Rxf2 {[%clk
0:01:08.2]} 32. Qxh6+ {[%clk 0:01:02.9]} 1-0

[Event "*** SCC Grand Prix: Titled Tuesday Blitz"]
[Site "Chess.com"]
[Date "2020.06.23"]
[Round "9"]
[White "AllStarShark"]
[Black "iverichighladze"]
[Result "0-1"]
[WhiteElo "2308"]
[BlackElo "2445"]
[TimeControl "180+1"]
[EndTime "11:44:04 PDT"]
[Termination "iverichighladze won by resignation"]

1. d4 {[%clk 0:03:00.9]} 1... g6 {[%clk 0:02:58.8]} 2. e4 {[%clk 0:03:00]} 2...
Bg7 {[%clk 0:02:58.2]} 3. Nc3 {[%clk 0:03:00.6]} 3... d6 {[%clk 0:02:57.1]} 4.
Be3 {[%clk 0:03:00.5]} 4... c6 {[%clk 0:02:54.9]} 5. Qd2 {[%clk 0:03:00.4]} 5...
b5 {[%clk 0:02:52.7]} 6. a3 {[%clk 0:02:59.4]} 6... Nd7 {[%clk 0:02:50.3]} 7. h4
{[%clk 0:02:52]} 7... h5 {[%clk 0:02:46.3]} 8. Nf3 {[%clk 0:02:46.5]} 8... Bb7
{[%clk 0:02:45.1]} 9. Ng5 {[%clk 0:02:46]} 9... a6 {[%clk 0:02:43.6]} 10. f4
{[%clk 0:02:42.7]} 10... Qc7 {[%clk 0:02:43.2]} 11. f5 {[%clk 0:02:36.9]} 11...
gxf5 {[%clk 0:02:34.5]} 12. exf5 {[%clk 0:02:33.3]} 12... Nh6 {[%clk 0:02:33.5]}
13. Bd3 {[%clk 0:02:19.3]} 13... Nb6 {[%clk 0:02:30.9]} 14. Qf2 {[%clk
0:02:14.3]} 14... Ng4 {[%clk 0:02:29.5]} 15. Qf3 {[%clk 0:02:13]} 15... c5
{[%clk 0:02:09.6]} 16. Be4 {[%clk 0:01:51]} 16... Bxe4 {[%clk 0:02:01.3]} 17.
Qxe4 {[%clk 0:01:46.4]} 17... Nxe3 {[%clk 0:02:00.7]} 18. Qxe3 {[%clk
0:01:47.3]} 18... cxd4 {[%clk 0:02:00.5]} 19. Ne6 {[%clk 0:00:59.6]} 19... fxe6
{[%clk 0:01:57.2]} 20. Qxe6 {[%clk 0:00:59.6]} 20... dxc3 {[%clk 0:01:56]} 21.
Qg6+ {[%clk 0:00:59.5]} 21... Kf8 {[%clk 0:01:51.4]} 22. O-O {[%clk 0:00:59.4]}
22... Rh6 {[%clk 0:01:46.4]} 23. Qg5 {[%clk 0:00:54.3]} 23... cxb2 {[%clk
0:01:41.2]} 24. Rae1 {[%clk 0:00:53.3]} 24... Nd5 {[%clk 0:01:37]} 25. f6 {[%clk
0:00:43.2]} 25... Nxf6 {[%clk 0:01:33.5]} 26. Re6 {[%clk 0:00:39.4]} 26... Qc5+
{[%clk 0:01:32]} 27. Kh1 {[%clk 0:00:35.3]} 27... Qxg5 {[%clk 0:01:31.2]} 28.
hxg5 {[%clk 0:00:36.2]} 28... Rg6 {[%clk 0:01:30.7]} 29. gxf6 {[%clk 0:00:33.1]}
29... Rxf6 {[%clk 0:01:30.9]} 0-1

[Event "*** SCC Grand Prix: Titled Tuesday Blitz"]
[Site "Chess.com"]
[Date "2020.06.23"]
[Round "9"]
[White "keshka01"]
[Black "GigaQuparadze"]
[Result "0-1"]
[WhiteElo "2591"]
[BlackElo "2832"]
[TimeControl "180+1"]
[EndTime "11:44:14 PDT"]
[Termination "GigaQuparadze won by resignation"]

1. d4 {[%clk 0:03:00.9]} 1... Nf6 {[%clk 0:02:55.3]} 2. Nf3 {[%clk 0:03:00.5]}
2... b6 {[%clk 0:02:54.8]} 3. Bf4 {[%clk 0:03:00]} 3... Bb7 {[%clk 0:02:54.8]}
4. e3 {[%clk 0:02:59.7]} 4... d6 {[%clk 0:02:55.1]} 5. h3 {[%clk 0:02:56.9]}
5... Nbd7 {[%clk 0:02:55.1]} 6. Bd3 {[%clk 0:02:51.9]} 6... g6 {[%clk 0:02:55]}
7. Nbd2 {[%clk 0:02:39.6]} 7... Bg7 {[%clk 0:02:54.7]} 8. e4 {[%clk 0:02:29.8]}
8... e5 {[%clk 0:02:48.2]} 9. dxe5 {[%clk 0:02:04.9]} 9... dxe5 {[%clk
0:02:49.1]} 10. Bh2 {[%clk 0:01:56.7]} 10... Qe7 {[%clk 0:02:46.5]} 11. Qe2
{[%clk 0:01:45.4]} 11... Nh5 {[%clk 0:02:45.8]} 12. Ba6 {[%clk 0:01:39.7]} 12...
Bxa6 {[%clk 0:02:43.8]} 13. Qxa6 {[%clk 0:01:40.6]} 13... O-O {[%clk 0:02:44]}
14. O-O {[%clk 0:01:37.7]} 14... Nf4 {[%clk 0:02:43.6]} 15. Rad1 {[%clk
0:01:31.7]} 15... Nc5 {[%clk 0:02:42.8]} 16. Qc4 {[%clk 0:01:27.2]} 16... b5
{[%clk 0:02:41.4]} 17. Qxb5 {[%clk 0:01:25]} 17... Rab8 {[%clk 0:02:41]} 18. Qa5
{[%clk 0:01:21.6]} 18... Rxb2 {[%clk 0:02:38.5]} 19. Bxf4 {[%clk 0:01:16]} 19...
exf4 {[%clk 0:02:37.6]} 20. e5 {[%clk 0:01:16.4]} 20... a6 {[%clk 0:02:16.2]}
21. Nb3 {[%clk 0:01:05.3]} 21... Rxc2 {[%clk 0:02:05.1]} 22. Nbd4 {[%clk
0:01:02.6]} 22... Rc4 {[%clk 0:01:59.8]} 23. Nc6 {[%clk 0:00:57.9]} 23... Qe8
{[%clk 0:01:58.3]} 24. Qxc7 {[%clk 0:00:58.4]} 24... Kh8 {[%clk 0:01:47.6]} 25.
Rfe1 {[%clk 0:00:53.3]} 25... Ne6 {[%clk 0:01:46.6]} 26. Qb7 {[%clk 0:00:48.4]}
26... Qxc6 {[%clk 0:01:45]} 27. Qxc6 {[%clk 0:00:42.4]} 27... Rxc6 {[%clk
0:01:45.9]} 28. Nd4 {[%clk 0:00:39.6]} 28... Nxd4 {[%clk 0:01:45]} 29. Rxd4
{[%clk 0:00:39.1]} 29... Re6 {[%clk 0:01:45.9]} 30. Rxf4 {[%clk 0:00:37.7]}
30... Bxe5 {[%clk 0:01:44.5]} 31. Rfe4 {[%clk 0:00:36.4]} 31... Rfe8 {[%clk
0:01:44]} 32. Kf1 {[%clk 0:00:33.6]} 32... Bc3 {[%clk 0:01:42.4]} 33. Rxe6
{[%clk 0:00:31]} 33... Rxe6 {[%clk 0:01:43.3]} 34. Rc1 {[%clk 0:00:28.4]} 34...
Bd2 {[%clk 0:01:42.9]} 35. Rc8+ {[%clk 0:00:26.7]} 35... Kg7 {[%clk 0:01:42.4]}
0-1

[Event "*** SCC Grand Prix: Titled Tuesday Blitz"]
[Site "Chess.com"]
[Date "2020.06.23"]
[Round "9"]
[White "Indianlad"]
[Black "topotun"]
[Result "1-0"]
[WhiteElo "2949"]
[BlackElo "2705"]
[TimeControl "180+1"]
[EndTime "11:44:14 PDT"]
[Termination "Indianlad won on time"]

1. e4 {[%clk 0:03:00.9]} 1... c5 {[%clk 0:02:59.7]} 2. Nc3 {[%clk 0:03:01.5]}
2... e6 {[%clk 0:02:59.7]} 3. Nf3 {[%clk 0:03:00.2]} 3... Nc6 {[%clk 0:03:00]}
4. Bb5 {[%clk 0:02:59.9]} 4... Nd4 {[%clk 0:02:59.8]} 5. Bd3 {[%clk 0:02:57.7]}
5... Nxf3+ {[%clk 0:02:59]} 6. Qxf3 {[%clk 0:02:57.7]} 6... Qc7 {[%clk
0:02:59.5]} 7. b3 {[%clk 0:02:55.9]} 7... a6 {[%clk 0:02:59.6]} 8. Bb2 {[%clk
0:02:56.4]} 8... Nf6 {[%clk 0:02:56.6]} 9. O-O {[%clk 0:02:55.9]} 9... Bd6
{[%clk 0:02:56.4]} 10. h3 {[%clk 0:02:56.3]} 10... Be5 {[%clk 0:02:56.5]} 11.
Rfe1 {[%clk 0:02:56]} 11... O-O {[%clk 0:02:50.8]} 12. Nd1 {[%clk 0:02:51.5]}
12... b5 {[%clk 0:02:47.5]} 13. Bxe5 {[%clk 0:02:51.4]} 13... Qxe5 {[%clk
0:02:48.4]} 14. c3 {[%clk 0:02:52.3]} 14... Bb7 {[%clk 0:02:42.6]} 15. Qe3
{[%clk 0:02:52.9]} 15... g5 {[%clk 0:02:12]} 16. Bc2 {[%clk 0:02:50.7]} 16...
Rac8 {[%clk 0:02:05.9]} 17. g3 {[%clk 0:02:48.2]} 17... g4 {[%clk 0:01:46.1]}
18. h4 {[%clk 0:02:43.5]} 18... Kh8 {[%clk 0:01:30.7]} 19. d4 {[%clk 0:02:26.2]}
19... cxd4 {[%clk 0:01:27.8]} 20. cxd4 {[%clk 0:02:27.1]} 20... Qh5 {[%clk
0:01:26.2]} 21. Bd3 {[%clk 0:02:27.2]} 21... d5 {[%clk 0:01:22.3]} 22. e5 {[%clk
0:02:27.5]} 22... Ne4 {[%clk 0:01:22.6]} 23. Bxe4 {[%clk 0:02:23.5]} 23... dxe4
{[%clk 0:01:22.6]} 24. Qf4 {[%clk 0:02:23.2]} 24... f6 {[%clk 0:00:48.9]} 25.
exf6 {[%clk 0:02:23.1]} 25... Qg6 {[%clk 0:00:49.2]} 26. Ne3 {[%clk 0:02:22.7]}
26... h5 {[%clk 0:00:49.4]} 27. Rac1 {[%clk 0:02:19]} 27... Rxf6 {[%clk
0:00:30.5]} 28. Rxc8+ {[%clk 0:02:17.9]} 28... Bxc8 {[%clk 0:00:31.4]} 29. Qe5
{[%clk 0:02:18.3]} 29... Kh7 {[%clk 0:00:26]} 30. Rc1 {[%clk 0:02:18.2]} 30...
Bb7 {[%clk 0:00:22]} 31. Rc5 {[%clk 0:02:10.6]} 1-0

[Event "*** SCC Grand Prix: Titled Tuesday Blitz"]
[Site "Chess.com"]
[Date "2020.06.23"]
[Round "9"]
[White "rududuyk"]
[Black "ChessArchitect64"]
[Result "1-0"]
[WhiteElo "2127"]
[BlackElo "1883"]
[TimeControl "180+1"]
[EndTime "11:44:24 PDT"]
[Termination "rududuyk won by checkmate"]

1. e4 {[%clk 0:03:00.9]} 1... c5 {[%clk 0:02:58.9]} 2. Nc3 {[%clk 0:02:58.7]}
2... Nc6 {[%clk 0:02:58.5]} 3. f4 {[%clk 0:02:58.9]} 3... g6 {[%clk 0:02:58.1]}
4. Nf3 {[%clk 0:02:59.2]} 4... Bg7 {[%clk 0:02:57.4]} 5. Bc4 {[%clk 0:02:59.7]}
5... e6 {[%clk 0:02:56.2]} 6. d3 {[%clk 0:03:00]} 6... Nge7 {[%clk 0:02:55.6]}
7. O-O {[%clk 0:03:00.3]} 7... O-O {[%clk 0:02:55.5]} 8. Qe1 {[%clk 0:03:00.4]}
8... d5 {[%clk 0:02:55.3]} 9. Bb3 {[%clk 0:02:59.9]} 9... b5 {[%clk 0:02:51.8]}
10. Nxb5 {[%clk 0:02:42.2]} 10... Qb6 {[%clk 0:02:49.2]} 11. c4 {[%clk
0:02:32.2]} 11... Nb4 {[%clk 0:02:25.8]} 12. Qe2 {[%clk 0:02:14.6]} 12... dxe4
{[%clk 0:01:49.7]} 13. dxe4 {[%clk 0:02:13]} 13... a6 {[%clk 0:01:49.8]} 14. Nc3
{[%clk 0:02:09.7]} 14... Bb7 {[%clk 0:01:49.8]} 15. Be3 {[%clk 0:01:42.9]} 15...
Bxc3 {[%clk 0:01:24.7]} 16. bxc3 {[%clk 0:01:41.4]} 16... Nbc6 {[%clk
0:01:23.7]} 17. Qf2 {[%clk 0:01:32.2]} 17... Qa5 {[%clk 0:01:23.4]} 18. Rac1
{[%clk 0:01:20.5]} 18... Nc8 {[%clk 0:00:57.1]} 19. Bxc5 {[%clk 0:01:18.3]}
19... Rd8 {[%clk 0:00:54.8]} 20. f5 {[%clk 0:01:09.7]} 20... exf5 {[%clk
0:00:39.9]} 21. exf5 {[%clk 0:01:09.2]} 21... Qc7 {[%clk 0:00:40.8]} 22. fxg6
{[%clk 0:01:04.4]} 22... hxg6 {[%clk 0:00:40.6]} 23. Ng5 {[%clk 0:01:01.5]}
23... Rd7 {[%clk 0:00:39.6]} 24. Rce1 {[%clk 0:00:57.6]} 24... Nd6 {[%clk
0:00:39.2]} 25. Qh4 {[%clk 0:00:52]} 25... Nf5 {[%clk 0:00:37.1]} 26. Qh7#
{[%clk 0:00:50.7]} 1-0

[Event "*** SCC Grand Prix: Titled Tuesday Blitz"]
[Site "Chess.com"]
[Date "2020.06.23"]
[Round "9"]
[White "Djager97"]
[Black "KubaGepard"]
[Result "0-1"]
[WhiteElo "2441"]
[BlackElo "2378"]
[TimeControl "180+1"]
[EndTime "11:44:27 PDT"]
[Termination "KubaGepard won by resignation"]

1. e4 {[%clk 0:03:00.9]} 1... e5 {[%clk 0:02:59.7]} 2. Nf3 {[%clk 0:03:01.3]}
2... Nc6 {[%clk 0:02:59.9]} 3. d4 {[%clk 0:03:01.9]} 3... exd4 {[%clk
0:03:00.8]} 4. Nxd4 {[%clk 0:03:02.6]} 4... Nf6 {[%clk 0:03:01.2]} 5. Nxc6
{[%clk 0:03:03.1]} 5... bxc6 {[%clk 0:03:02.1]} 6. e5 {[%clk 0:03:03.7]} 6...
Qe7 {[%clk 0:03:02.6]} 7. Qe2 {[%clk 0:03:04.3]} 7... Nd5 {[%clk 0:03:03.2]} 8.
c4 {[%clk 0:03:04.9]} 8... Nb6 {[%clk 0:03:03.8]} 9. Nc3 {[%clk 0:03:04.2]} 9...
Ba6 {[%clk 0:03:03.9]} 10. Qe4 {[%clk 0:02:59.8]} 10... Qe6 {[%clk 0:03:02.6]}
11. c5 {[%clk 0:02:37.7]} 11... Bxf1 {[%clk 0:02:57.4]} 12. cxb6 {[%clk
0:02:37.1]} 12... Ba6 {[%clk 0:02:57.1]} 13. bxc7 {[%clk 0:02:37.2]} 13... Bc5
{[%clk 0:02:53.8]} 14. Be3 {[%clk 0:02:06.9]} 14... Bxe3 {[%clk 0:02:51.3]} 15.
Qxe3 {[%clk 0:02:07.8]} 15... O-O {[%clk 0:02:51]} 16. O-O-O {[%clk 0:02:05.9]}
16... Rfc8 {[%clk 0:02:45.9]} 17. Rd6 {[%clk 0:02:05.1]} 17... Qg4 {[%clk
0:02:43.8]} 18. Rhd1 {[%clk 0:01:55.9]} 18... Rxc7 {[%clk 0:02:43]} 19. e6
{[%clk 0:01:45.3]} 19... fxe6 {[%clk 0:02:35.4]} 20. Rxd7 {[%clk 0:01:45.3]}
20... Rxd7 {[%clk 0:02:35]} 21. Rxd7 {[%clk 0:01:46.2]} 21... Qxg2 {[%clk
0:02:34.9]} 22. Qxe6+ {[%clk 0:01:11.6]} 22... Kh8 {[%clk 0:02:32.7]} 23. Qe7
{[%clk 0:01:03.9]} 23... Rg8 {[%clk 0:02:18.6]} 24. Qc5 {[%clk 0:00:27.8]} 24...
Bc8 {[%clk 0:02:06.4]} 25. Rxa7 {[%clk 0:00:24.6]} 25... Bg4 {[%clk 0:02:01.1]}
26. a4 {[%clk 0:00:21.5]} 26... Rd8 {[%clk 0:01:54.1]} 27. Kb1 {[%clk
0:00:21.1]} 27... Qf1+ {[%clk 0:01:50.5]} 28. Kc2 {[%clk 0:00:13.2]} 28... Qd3+
{[%clk 0:01:45.9]} 29. Kc1 {[%clk 0:00:11.9]} 29... Bf5 {[%clk 0:01:34.2]} 0-1

[Event "*** SCC Grand Prix: Titled Tuesday Blitz"]
[Site "Chess.com"]
[Date "2020.06.23"]
[Round "9"]
[White "Igor_Lysyj"]
[Black "Beca95"]
[Result "0-1"]
[WhiteElo "2774"]
[BlackElo "2891"]
[TimeControl "180+1"]
[EndTime "11:44:28 PDT"]
[Termination "Beca95 won by resignation"]

1. d4 {[%clk 0:02:59.7]} 1... Nf6 {[%clk 0:03:00.2]} 2. c4 {[%clk 0:02:59.4]}
2... c5 {[%clk 0:03:00.5]} 3. d5 {[%clk 0:02:59.1]} 3... e6 {[%clk 0:03:01.1]}
4. Nc3 {[%clk 0:02:58.4]} 4... exd5 {[%clk 0:03:01.7]} 5. cxd5 {[%clk 0:02:58]}
5... d6 {[%clk 0:03:02.4]} 6. Nf3 {[%clk 0:02:57.3]} 6... g6 {[%clk 0:03:02.4]}
7. Bf4 {[%clk 0:02:57]} 7... a6 {[%clk 0:03:02.8]} 8. a4 {[%clk 0:02:56.5]} 8...
Bg7 {[%clk 0:03:03.1]} 9. h3 {[%clk 0:02:55.2]} 9... O-O {[%clk 0:03:03.2]} 10.
e3 {[%clk 0:02:55.2]} 10... Ne8 {[%clk 0:03:03.6]} 11. Be2 {[%clk 0:02:54.1]}
11... Nd7 {[%clk 0:03:04.2]} 12. O-O {[%clk 0:02:53.5]} 12... Ne5 {[%clk
0:03:04.9]} 13. Bxe5 {[%clk 0:02:53]} 13... Bxe5 {[%clk 0:03:04.2]} 14. Nxe5
{[%clk 0:02:51.5]} 14... dxe5 {[%clk 0:03:05.1]} 15. a5 {[%clk 0:02:44.1]} 15...
Nd6 {[%clk 0:03:03.6]} 16. Qd2 {[%clk 0:02:38.5]} 16... Bd7 {[%clk 0:03:02.5]}
17. e4 {[%clk 0:02:35.1]} 17... Rc8 {[%clk 0:02:57.9]} 18. f4 {[%clk 0:02:32.6]}
18... Qe7 {[%clk 0:02:58.1]} 19. Rae1 {[%clk 0:02:23.4]} 19... f6 {[%clk
0:02:53.9]} 20. Bd3 {[%clk 0:02:15.1]} 20... Bb5 {[%clk 0:02:50]} 21. Rf2 {[%clk
0:02:04.6]} 21... exf4 {[%clk 0:02:40.6]} 22. Bxb5 {[%clk 0:01:57.7]} 22... axb5
{[%clk 0:02:40.1]} 23. Qxf4 {[%clk 0:01:54.3]} 23... Qe5 {[%clk 0:02:30.2]} 24.
Qf3 {[%clk 0:01:39.3]} 24... b4 {[%clk 0:02:29.1]} 25. Na4 {[%clk 0:01:37]}
25... c4 {[%clk 0:02:29.2]} 26. Nb6 {[%clk 0:01:34.1]} 26... Rc7 {[%clk
0:02:29.5]} 27. Rfe2 {[%clk 0:00:55.9]} 27... c3 {[%clk 0:02:29.2]} 28. bxc3
{[%clk 0:00:55.5]} 28... bxc3 {[%clk 0:02:29.4]} 29. Qd3 {[%clk 0:00:53.2]}
29... Re8 {[%clk 0:02:20.2]} 30. Rc1 {[%clk 0:00:43.9]} 30... f5 {[%clk
0:02:19.6]} 31. Rcc2 {[%clk 0:00:38.9]} 31... Nxe4 {[%clk 0:02:17.2]} 32. Qb5
{[%clk 0:00:36.4]} 32... Qd4+ {[%clk 0:02:09.6]} 33. Kh2 {[%clk 0:00:35.7]}
33... Rd8 {[%clk 0:02:05.7]} 34. Qb3 {[%clk 0:00:34.8]} 34... Kg7 {[%clk
0:02:03.6]} 35. Qb5 {[%clk 0:00:33.3]} 35... h5 {[%clk 0:02:01.7]} 36. Rc1
{[%clk 0:00:31.1]} 36... h4 {[%clk 0:02:01]} 37. Rcc2 {[%clk 0:00:29.9]} 37...
Qd1 {[%clk 0:01:55.5]} 38. Rxe4 {[%clk 0:00:21.4]} 38... fxe4 {[%clk 0:01:52.6]}
39. Re2 {[%clk 0:00:21.4]} 39... Qd3 {[%clk 0:01:47.6]} 0-1

[Event "*** SCC Grand Prix: Titled Tuesday Blitz"]
[Site "Chess.com"]
[Date "2020.06.23"]
[Round "9"]
[White "Tooweak2slow03"]
[Black "Evgeny81"]
[Result "0-1"]
[WhiteElo "2663"]
[BlackElo "2803"]
[TimeControl "180+1"]
[EndTime "11:44:34 PDT"]
[Termination "Evgeny81 won by resignation"]

1. e4 {[%clk 0:02:43.3]} 1... c5 {[%clk 0:02:58.9]} 2. Nf3 {[%clk 0:02:42]} 2...
Nc6 {[%clk 0:02:59.4]} 3. d4 {[%clk 0:02:39.1]} 3... cxd4 {[%clk 0:03:00.3]} 4.
Nxd4 {[%clk 0:02:39.8]} 4... e5 {[%clk 0:03:00.6]} 5. Nb5 {[%clk 0:02:36.8]}
5... a6 {[%clk 0:03:00.6]} 6. N5a3 {[%clk 0:02:36.3]} 6... Nf6 {[%clk
0:02:54.7]} 7. Nc3 {[%clk 0:02:33.4]} 7... b5 {[%clk 0:02:53.1]} 8. Nab1 {[%clk
0:02:08.2]} 8... Bc5 {[%clk 0:02:51]} 9. Bd3 {[%clk 0:02:05.7]} 9... O-O {[%clk
0:02:43.8]} 10. O-O {[%clk 0:02:02.9]} 10... d6 {[%clk 0:02:42.9]} 11. Bg5
{[%clk 0:01:59.7]} 11... h6 {[%clk 0:02:43]} 12. Bxf6 {[%clk 0:01:56.6]} 12...
Qxf6 {[%clk 0:02:43.9]} 13. Nd5 {[%clk 0:01:57.5]} 13... Qg5 {[%clk 0:02:36.8]}
14. Nbc3 {[%clk 0:01:50.3]} 14... Bg4 {[%clk 0:02:29.9]} 15. Qc1 {[%clk
0:01:48.1]} 15... Qh4 {[%clk 0:02:24.7]} 16. Ne2 {[%clk 0:01:29.9]} 16... Bxe2
{[%clk 0:02:13]} 17. Bxe2 {[%clk 0:01:27.3]} 17... Qxe4 {[%clk 0:02:09.6]} 18.
Bf3 {[%clk 0:01:26.9]} 18... Qh4 {[%clk 0:02:06]} 19. Nc7 {[%clk 0:01:21.2]}
19... e4 {[%clk 0:02:02.8]} 20. Be2 {[%clk 0:01:20.3]} 20... Nd4 {[%clk
0:01:50.7]} 21. Qd2 {[%clk 0:01:13]} 21... Nf5 {[%clk 0:01:24.5]} 22. Nxa8
{[%clk 0:01:08.4]} 22... e3 {[%clk 0:01:24.2]} 23. Qd3 {[%clk 0:01:02.2]} 23...
exf2+ {[%clk 0:01:11]} 24. Kh1 {[%clk 0:01:01.4]} 24... g6 {[%clk 0:01:04.7]}
25. Nc7 {[%clk 0:00:52]} 25... Be3 {[%clk 0:01:04.9]} 26. g4 {[%clk 0:00:44.1]}
26... Bf4 {[%clk 0:00:53.2]} 27. h3 {[%clk 0:00:42.4]} 27... Ne3 {[%clk
0:00:46.5]} 0-1